lending/lending_fUSD_20240111
["ID","MTS","AMOUNT","RATE_DAILY","PERIOD"]
[311197716,1704979855008,-203.2,0.0004,4]
[311197717,1704979855018,-500.0,0.0004,4]
[311197718,1704979855029,-500.0,0.0004,4]
[311197719,1704979855038,-500.0,0.0004,4]
[311197720,1704979855049,-284.44,0.0004,4]
[311197721,1704979855059,-1590.5,0.0004,4]
[311197722,1704979855070,-500.0,0.0004,4]
[311197723,1704979855079,-500.0,0.0004,4]
[311197724,1704979855090,-500.0,0.0004,4]
[311197725,1704979855100,-500.0,0.0004,4]
[311197726,1704979855110,-747.7,0.0004,4]
[311197727,1704979855120,-500.0,0.0004,4]
[311197728,1704979855129,-500.0,0.0004,4]
[311197729,1704979855140,-1530.69,0.0004,4]
[311197730,1704979855150,-500.0,0.0004,4]
[311197731,1704979855160,-150.0,0.00040027,2]
[311197732,1704979855169,-288.06509439,0.00040038,9]
[311197733,1704979855179,-159.88122009,0.0004004,7]
[311197734,1704979855189,-1000.0,0.00040054,10]
[311197735,1704979855198,-150.0,0.00040072,2]
[311197736,1704979855208,-1379.15,0.00040082,2]
[311197737,1704979855218,-221.92552106,0.00040089,2]
[311197738,1704979855227,-1641.99903377,0.00040089,2]
[311197739,1704979855237,-875.92834829,0.00040093,2]
[311197740,1704979855247,-1639.78777263,0.00040098,2]
[311197741,1704979855257,-414.22,0.00040153,2]
[311197742,1704979855267,-165.24,0.00040154,2]
[311197743,1704979855278,-200.0,0.00040168,2]
[311197744,1704979855287,-322.15297897,0.00040174,32]
[311197745,1704979855297,-150.0,0.00040182,2]
[311197746,1704979855307,-151.22078083,0.00040198,7]
[311197747,1704979855317,-4000.0,0.000402,20]
[311197748,1704979855326,-1545.64420957,0.00040232,14]
[311197749,1704979855337,-500.0,0.00040272,4]
[311197750,1704979855346,-546.74634549,0.00040273,4]
[311197751,1704979855356,-500.0,0.00040273,4]
[311197752,1704979855366,-406.86263509,0.00040273,4]
[311197753,1704979855378,-535.81,0.00040273,4]
[311197754,1704979855388,-167.74,0.00040273,4]
[311197755,1704979855399,-500.0,0.00040273,4]
[311197756,1704979855409,-500.0,0.00040273,4]
[311197757,1704979855420,-500.0,0.00040273,4]
[311197758,1704979855431,-500.0,0.00040273,4]
[311197759,1704979855441,-500.0,0.00040273,4]
[311197760,1704979855451,-500.0,0.00040273,4]
[311197761,1704979855462,-500.0,0.00040273,4]
[311197762,1704979855471,-547.04,0.00040273,4]
[311197763,1704979855482,-500.0,0.00040273,4]
[311197764,1704979855494,-500.0,0.00040273,4]
[311197765,1704979855504,-500.0,0.00040273,4]
[311197766,1704979855515,-500.0,0.00040273,4]
[311197767,1704979855525,-500.0,0.00040273,4]
[311197768,1704979855536,-500.0,0.00040273,4]
[311197769,1704979855546,-418.12,0.00040273,4]
[311197770,1704979855557,-500.0,0.00040273,4]
[311197771,1704979855566,-500.0,0.00040273,4]
[311197772,1704979855577,-500.0,0.00040273,4]
[311197773,1704979855587,-280.72,0.00040273,4]
[311197774,1704979855597,-500.0,0.00040273,4]
[311197775,1704979855607,-592.16,0.00040273,4]
[311197776,1704979855617,-500.0,0.00040273,4]
[311197777,1704979855628,-500.0,0.00040273,4]
[311197778,1704979855638,-499.96,0.00040273,4]
[311197779,1704979855648,-500.0,0.00040273,4]
[311197780,1704979855657,-541.27,0.00040273,4]
[311197781,1704979855667,-242.51009357,0.00040273,4]
[311197782,1704979855679,-500.0,0.00040273,4]
[311197783,1704979855689,-500.0,0.00040273,4]
[311197784,1704979855699,-162.79690103,0.00040273,4]
[311197785,1704979855709,-500.0,0.00040273,4]
[311197786,1704979855719,-225.3646939,0.00040273,4]
[311197787,1704979855730,-500.0,0.00040273,4]
[311197788,1704979855741,-306.74,0.00040273,4]
[311197789,1704979855751,-500.0,0.00040273,4]
[311197790,1704979855761,-532.83,0.00040273,4]
[311197791,1704979855771,-500.0,0.00040273,4]
[311197792,1704979855782,-7021.77,0.00040273,4]
[311197793,1704979855793,-500.0,0.00040273,4]
[311197794,1704979855804,-500.0,0.00040273,4]
[311197795,1704979855814,-500.0,0.00040273,4]
[311197796,1704979855825,-620.58,0.00040273,4]
[311197797,1704979855836,-500.0,0.00040273,4]
[311197798,1704979855847,-794.87,0.00040273,4]
[311197799,1704979855857,-500.0,0.00040273,4]
[311197800,1704979855868,-502.12,0.00040273,4]
[311197801,1704979855879,-660.97,0.00040273,4]
[311197802,1704979855890,-500.0,0.00040273,4]
[311197803,1704979855899,-500.0,0.00040273,4]
[311197804,1704979856045,-500.0,0.00040273,4]
[311197805,1704979856071,-500.0,0.00040273,4]
[311197806,1704979856081,-500.0,0.00040273,4]
[311197807,1704979856090,-500.0,0.00040273,4]
[311197808,1704979856099,-500.0,0.00040273,4]
[311197809,1704979856109,-500.0,0.00040273,4]
[311197810,1704979856118,-500.0,0.00040273,4]
[311197811,1704979856128,-500.0,0.00040273,4]
[311197812,1704979856139,-500.0,0.00040273,4]
[311197813,1704979856148,-500.0,0.00040273,4]
[311197814,1704979856158,-1164.67,0.00040273,4]
[311197815,1704979856167,-500.0,0.00040273,4]
[311197816,1704979856180,-1105.32,0.00040273,4]
[311197817,1704979856190,-854.35,0.00040273,4]
[311197818,1704979856199,-500.0,0.00040273,4]
[311197819,1704979856209,-500.0,0.00040273,4]
[311197820,1704979856218,-500.0,0.00040273,4]
[311197821,1704979856228,-500.0,0.00040273,4]
[311197822,1704979856238,-500.0,0.00040273,4]
[311197823,1704979856247,-500.0,0.00040273,4]
[311197824,1704979856257,-500.0,0.00040273,4]
[311197825,1704979856268,-500.0,0.00040273,4]
[311197826,1704979856278,-500.0,0.00040273,4]
[311197827,1704979856287,-500.0,0.00040273,4]
[311197828,1704979856298,-500.0,0.00040273,4]
[311197829,1704979856310,-307.6273161,0.00040273,4]
[311197830,1704979856321,-500.0,0.00040273,4]
[311197831,1704979856331,-500.0,0.00040273,4]
[311197832,1704979856341,-500.0,0.00040273,4]
[311197833,1704979856350,-500.0,0.00040273,4]
[311197834,1704979856360,-500.0,0.00040273,4]
[311197835,1704979856370,-2484.37,0.00040273,4]
[311197836,1704979856380,-500.0,0.00040273,4]
[311197837,1704979856398,-500.0,0.00040273,4]
[311197838,1704979856408,-1838.54,0.00040273,4]
[311197839,1704979856419,-301.44,0.00040273,4]
[311197840,1704979856430,-500.0,0.00040273,4]
[311197841,1704979856440,-500.0,0.00040273,4]
[311197842,1704979856449,-500.0,0.00040273,4]
[311197843,1704979856459,-835.03,0.00040273,4]
[311197844,1704979856469,-538.11,0.00040273,4]
[311197845,1704979856479,-500.0,0.00040273,4]
[311197846,1704979856489,-502.96,0.00040273,4]
[311197847,1704979856499,-513.38,0.00040273,4]
[311197848,1704979856509,-500.0,0.00040273,4]
[311197849,1704979856519,-500.0,0.00040273,4]
[311197850,1704979856529,-580.95,0.00040273,4]
[311197851,1704979856538,-1413.2,0.00040273,4]
[311197852,1704979856549,-500.0,0.00040273,4]
[311197853,1704979856559,-894.67,0.00040273,4]
[311197854,1704979856569,-1588.08,0.00040273,4]
[311197855,1704979856579,-500.0,0.00040273,4]
[311197856,1704979856589,-500.0,0.00040273,5]
[311197857,1704979856598,-534.67,0.00040273,4]
[311197858,1704979856608,-818.97,0.00040273,4]
[311197859,1704979856618,-557.1,0.00040273,4]
[311197860,1704979856628,-4016.32,0.00040273,4]
[311197861,1704979856638,-330.36,0.00040273,4]
[311197862,1704979856647,-500.0,0.00040273,4]
[311197863,1704979856657,-500.0,0.00040273,4]
[311197864,1704979856666,-500.0,0.00040273,4]
[311197865,1704979856675,-500.0,0.00040273,4]
[311197866,1704979856687,-500.0,0.00040273,4]
[311197867,1704979856697,-513.2,0.00040273,4]
[311197868,1704979856707,-630.06,0.00040273,4]
[311197869,1704979856716,-500.0,0.00040273,4]
[311197870,1704979856726,-500.0,0.00040273,4]
[311197871,1704979856734,-1262.12,0.00040273,4]
[311197872,1704979856744,-1205.92,0.00040273,4]
[311197873,1704979856753,-500.0,0.00040273,4]
[311197874,1704979856762,-500.0,0.00040273,4]
[311197875,1704979856771,-500.0,0.00040273,4]
[311197876,1704979856781,-500.0,0.00040273,4]
[311197877,1704979856791,-500.0,0.00040273,4]
[311197878,1704979856801,-500.0,0.00040273,4]
[311197879,1704979856811,-500.0,0.00040273,4]
[311197880,1704979856821,-500.0,0.00040273,4]
[311197881,1704979856831,-936.41,0.00040273,4]
[311197882,1704979856841,-500.0,0.00040273,4]
[311197883,1704979856850,-500.0,0.00040273,4]
[311197884,1704979856859,-684.95,0.00040273,4]
[311197885,1704979856868,-500.0,0.00040273,4]
[311197886,1704979856878,-500.0,0.00040273,5]
[311197887,1704979856888,-494.29,0.00040273,4]
[311197888,1704979856898,-5271.68,0.00040273,4]
[311197889,1704979856907,-500.0,0.00040273,4]
[311197890,1704979856917,-500.0,0.00040273,4]
[311197891,1704979856930,-500.0,0.00040273,4]
[311197892,1704979856939,-495.64,0.00040273,4]
[311197893,1704979856949,-500.0,0.00040273,4]
[311197894,1704979856958,-1590.5,0.00040273,4]
[311197895,1704979856968,-500.0,0.00040273,4]
[311197896,1704979856977,-500.0,0.00040273,4]
[311197897,1704979856987,-308.83,0.00040273,4]
[311197898,1704979856996,-500.0,0.00040273,4]
[311197899,1704979857006,-747.7,0.00040273,4]
[311197900,1704979857017,-225.68,0.00040273,4]
[311197901,1704979857027,-611.3,0.00040273,4]
[311197902,1704979857037,-1530.69,0.00040273,4]
[311197903,1704979857047,-500.0,0.00040273,4]
[311197904,1704979857057,-150.0,0.00040279,2]
[311197905,1704979857067,-1808.3,0.00040281,5]
[311197906,1704979857076,-1000.0,0.00040282,10]
[311197907,1704979857085,-1000.0,0.00040282,10]
[311197908,1704979857095,-1000.0,0.00040282,10]
[311197909,1704979857115,-1000.0,0.00040282,10]
[311197910,1704979857137,-150.40439393,0.00040299,7]
[311197911,1704979857146,-150.0,0.00040348,2]
[311197912,1704979857156,-473.43,0.00040349,15]
[311197913,1704979857165,-2000.0,0.0004035,2]
[311197914,1704979857175,-200.0,0.0004035,2]
[311197915,1704979857190,-1000.0,0.00040352,10]
[311197916,1704979857199,-1000.0,0.00040352,10]
[311197917,1704979857208,-300.0,0.00040355,2]
[311197918,1704979857218,-414.22,0.00040355,2]
[311197919,1704979857227,-155.0,0.0004037,2]
[311197920,1704979857237,-500.0,0.0004038,10]
[311197921,1704979857247,-500.0,0.00040382,4]
[311197922,1704979857257,-200000.0,0.00040383,30]
[311197923,1704979857266,-151.0,0.00040383,7]
[311197924,1704979857275,-151.0,0.00040383,7]
[311197925,1704979857285,-151.0,0.00040383,7]
[311197926,1704979857294,-194.801,0.00040383,7]
[311197927,1704979857305,-194.801,0.00040383,7]
[311197928,1704979857315,-151.0,0.00040383,7]
[311197929,1704979857325,-150.0,0.00040385,2]
[311197930,1704979857334,-337.62,0.00040388,2]
[311197931,1704979857343,-151.0,0.00040421,7]
[311197932,1704979857353,-151.0,0.00040421,7]
[311197933,1704979857362,-230.27573,0.00040421,7]
[311197934,1704979857372,-230.27573,0.00040421,7]
[311197935,1704979857381,-151.0,0.00040421,7]
[311197936,1704979857391,-151.0,0.00040421,7]
[311197937,1704979857401,-7811.0,0.00040421,30]
[311197938,1704979857411,-353.0,0.00040421,30]
[311197939,1704979857421,-204.0,0.00040446,19]
[311197940,1704979857436,-322.15297897,0.00040448,32]
[311197941,1704979857446,-150.0,0.00040477,2]
[311197942,1704979857456,-441.51507136,0.000405,2]
[311197943,1704979857466,-38208.73688342,0.000405,2]
[311197944,1704979857477,-2000.0,0.000405,24]
[311197945,1704979857488,-500.0,0.00040547,4]
[311197946,1704979857498,-500.0,0.00040547,4]
[311197947,1704979857509,-500.0,0.00040547,4]
[311197948,1704979857519,-500.0,0.00040547,4]
[311197949,1704979857531,-646.88,0.00040547,4]
[311197950,1704979857542,-500.0,0.00040547,4]
[311197951,1704979857551,-500.0,0.00040547,4]
[311197952,1704979857561,-500.0,0.00040547,4]
[311197953,1704979857570,-500.0,0.00040547,4]
[311197954,1704979857580,-500.0,0.00040547,4]
[311197955,1704979857590,-499.91,0.00040547,4]
[311197956,1704979857599,-398.64,0.00040547,4]
[311197957,1704979857610,-320.13549851,0.00040547,4]
[311197958,1704979857620,-339.8,0.00040547,4]
[311197959,1704979857630,-303.25,0.00040547,4]
[311197960,1704979857640,-500.0,0.00040547,4]
[311197961,1704979857649,-437.8,0.00040547,4]
[311197962,1704979857659,-500.0,0.00040547,4]
[311197963,1704979857669,-500.0,0.00040547,4]
[311197964,1704979857681,-576.68,0.00040547,4]
[311197965,1704979857690,-500.0,0.00040547,4]
[311197966,1704979857699,-220.11,0.00040547,4]
[311197967,1704979857709,-500.0,0.00040547,4]
[311197968,1704979857718,-500.0,0.00040547,4]
[311197969,1704979857728,-500.0,0.00040547,4]
[311197970,1704979857738,-500.0,0.00040547,4]
[311197971,1704979857747,-532.83,0.00040547,4]
[311197972,1704979857756,-586.83,0.00040547,4]
[311197973,1704979857765,-7021.77,0.00040547,4]
[311197974,1704979857776,-500.0,0.00040547,4]
[311197975,1704979857786,-500.0,0.00040547,4]
[311197976,1704979857795,-500.0,0.00040547,4]
[311197977,1704979857805,-500.0,0.00040547,4]
[311197978,1704979857816,-794.87,0.00040547,4]
[311197979,1704979857825,-500.0,0.00040547,4]
[311197980,1704979857836,-502.12,0.00040547,4]
[311197981,1704979857845,-660.97,0.00040547,4]
[311197982,1704979857854,-500.0,0.00040547,4]
[311197983,1704979857864,-500.0,0.00040547,4]
[311197984,1704979857873,-500.0,0.00040547,4]
[311197985,1704979857882,-500.0,0.00040547,4]
[311197986,1704979857892,-500.0,0.00040547,4]
[311197987,1704979857902,-500.0,0.00040547,4]
[311197988,1704979857912,-500.0,0.00040547,4]
[311197989,1704979857921,-437.76,0.00040547,4]
[311197990,1704979857932,-500.0,0.00040547,4]
[311197991,1704979857943,-500.0,0.00040547,4]
[311197992,1704979857952,-440.19,0.00040547,4]
[311197993,1704979857962,-500.0,0.00040547,4]
[311197994,1704979857971,-1164.67,0.00040547,4]
[311197995,1704979857980,-500.0,0.00040547,4]
[311197996,1704979857989,-1105.32,0.00040547,4]
[311197997,1704979857999,-854.35,0.00040547,4]
[311197998,1704979858009,-500.0,0.00040547,4]
[311197999,1704979858019,-500.0,0.00040547,4]
[311198000,1704979858028,-500.0,0.00040547,4]
[311198001,1704979858038,-500.0,0.00040547,4]
[311198002,1704979858049,-500.0,0.00040547,4]
[311198003,1704979858059,-500.0,0.00040547,4]
[311198004,1704979858069,-500.0,0.00040547,4]
[311198005,1704979858079,-500.0,0.00040547,4]
[311198006,1704979858089,-500.0,0.00040547,4]
[311198007,1704979858098,-500.0,0.00040547,4]
[311198008,1704979858107,-500.0,0.00040547,4]
[311198009,1704979858117,-500.0,0.00040547,4]
[311198010,1704979858126,-501.08,0.00040547,4]
[311198011,1704979858135,-500.0,0.00040547,4]
[311198012,1704979858144,-500.0,0.00040547,4]
[311198013,1704979858154,-500.0,0.00040547,4]
[311198014,1704979858162,-2484.37,0.00040547,4]
[311198015,1704979858172,-500.0,0.00040547,4]
[311198016,1704979858186,-500.0,0.00040547,4]
[311198017,1704979858195,-1838.54,0.00040547,4]
[311198018,1704979858205,-500.0,0.00040547,4]
[311198019,1704979858214,-500.0,0.00040547,4]
[311198020,1704979858223,-835.03,0.00040547,4]
[311198021,1704979858233,-538.11,0.00040547,4]
[311198022,1704979858243,-500.0,0.00040547,4]
[311198023,1704979858253,-502.96,0.00040547,4]
[311198024,1704979858264,-513.38,0.00040547,4]
[311198025,1704979858274,-500.0,0.00040547,4]
[311198026,1704979858284,-500.0,0.00040547,4]
[311198027,1704979858295,-580.95,0.00040547,4]
[311198028,1704979858304,-1413.2,0.00040547,4]
[311198029,1704979858315,-500.0,0.00040547,4]
[311198030,1704979858325,-894.67,0.00040547,4]
[311198031,1704979858335,-1588.08,0.00040547,4]
[311198032,1704979858344,-500.0,0.00040547,4]
[311198033,1704979858354,-500.0,0.00040547,5]
[311198034,1704979858364,-534.67,0.00040547,4]
[311198035,1704979858372,-818.97,0.00040547,4]
[311198036,1704979858382,-557.1,0.00040547,4]
[311198037,1704979858390,-4016.32,0.00040547,4]
[311198038,1704979858400,-500.0,0.00040547,4]
[311198039,1704979858409,-500.0,0.00040547,4]
[311198040,1704979858420,-500.0,0.00040547,4]
[311198041,1704979858430,-500.0,0.00040547,4]
[311198042,1704979858440,-500.0,0.00040547,4]
[311198043,1704979858449,-630.06,0.00040547,4]
[311198044,1704979858458,-500.0,0.00040547,4]
[311198045,1704979858467,-500.0,0.00040547,4]
[311198046,1704979858477,-1262.12,0.00040547,4]
[311198047,1704979858486,-1205.92,0.00040547,4]
[311198048,1704979858495,-500.0,0.00040547,4]
[311198049,1704979858505,-500.0,0.00040547,4]
[311198050,1704979858515,-500.0,0.00040547,4]
[311198051,1704979858524,-500.0,0.00040547,4]
[311198052,1704979858534,-645.72,0.00040547,4]
[311198053,1704979858544,-500.0,0.00040547,4]
[311198054,1704979858554,-500.0,0.00040547,4]
[311198055,1704979858563,-310.44,0.00040547,4]
[311198056,1704979858572,-936.41,0.00040547,4]
[311198057,1704979858582,-500.0,0.00040547,4]
[311198058,1704979858591,-500.0,0.00040547,4]
[311198059,1704979858601,-684.95,0.00040547,4]
[311198060,1704979858611,-500.0,0.00040547,4]
[311198061,1704979858620,-500.0,0.00040547,5]
[311198062,1704979858629,-5271.68,0.00040547,4]
[311198063,1704979858638,-500.0,0.00040547,4]
[311198064,1704979858648,-500.0,0.00040547,4]
[311198065,1704979858658,-500.0,0.00040547,4]
[311198066,1704979858667,-1590.5,0.00040547,4]
[311198067,1704979858676,-500.0,0.00040547,4]
[311198068,1704979858688,-500.0,0.00040547,4]
[311198069,1704979858697,-500.0,0.00040547,4]
[311198070,1704979858706,-292.79,0.00040547,4]
[311198071,1704979858715,-747.7,0.00040547,4]
[311198072,1704979858724,-1530.69,0.00040547,4]
[311198073,1704979858733,-500.0,0.00040547,4]
[311198074,1704979858743,-414.22,0.00040557,2]
[311198075,1704979858752,-1545.64420957,0.00040566,14]
[311198076,1704979858761,-151.95222082,0.00040587,7]
[311198077,1704979858770,-15114.0,0.0004059,3]
[311198078,1704979858779,-150.0,0.00040595,2]
[311198079,1704979858788,-150.0,0.00040596,2]
[311198080,1704979858797,-153.84,0.00040596,2]
[311198081,1704979858806,-5693.185909,0.000406,26]
[311198082,1704979858815,-2010.38,0.000406,2]
[311198083,1704979858825,-500.0,0.000406,3]
[311198084,1704979858834,-166.196794,0.000406,12]
[311198085,1704979858843,-860.245002,0.000406,3]
[311198086,1704979858852,-311.54,0.000406,2]
[311198087,1704979858862,-150.0,0.00040611,2]
[311198088,1704979858871,-593.85,0.00040615,2]
[311198089,1704979858881,-150.0,0.00040616,2]
[311198090,1704979858890,-150.0,0.00040655,2]
[311198091,1704979858900,-202.8272269,0.0004068,7]
[311198092,1704979858910,-200.0,0.0004068,7]
[311198093,1704979858919,-500.0,0.00040683,4]
[311198094,1704979858928,-126495.2690968,0.00040684,2]
[311198095,1704979858938,-964.2600412,0.00040684,2]
[311198096,1704979858949,-2244.4674678,0.00040684,2]
[311198097,1704979858959,-90499.1547467,0.00040684,2]
[311198098,1704979858968,-660.5869349,0.00040684,2]
[311198099,1704979858978,-6839.50522379,0.00040684,2]
[311198100,1704979858987,-150.0,0.00040685,7]
[311198101,1704979858996,-150.0,0.00040685,7]
[311198102,1704979859006,-150.0,0.00040685,7]
[311198103,1704979859014,-150.0,0.00040685,7]
[311198104,1704979859024,-150.0,0.00040685,7]
[311198105,1704979859033,-150.0,0.00040685,7]
[311198106,1704979859042,-150.0,0.00040685,7]
[311198107,1704979859052,-207.34530056,0.00040685,7]
[311198108,1704979859061,-150.0,0.00040685,7]
[311198109,1704979859070,-3291.64435569,0.00040686,2]
[311198110,1704979859079,-500.0,0.00040689,4]
[311198111,1704979859089,-500.0,0.00040689,4]
[311198112,1704979859098,-500.0,0.00040689,4]
[311198113,1704979859107,-500.0,0.00040689,4]
[311198114,1704979859116,-500.0,0.00040689,4]
[311198115,1704979859125,-640.15872014,0.00040689,4]
[311198116,1704979859135,-150.0,0.00040689,3]
[311198117,1704979859144,-150.0,0.00040689,3]
[311198118,1704979859154,-150.0,0.00040689,3]
[311198119,1704979859163,-150.0,0.00040689,3]
[311198120,1704979859172,-150.0,0.00040689,3]
[311198121,1704979859184,-150.0,0.00040689,3]
[311198122,1704979859194,-150.0,0.00040689,3]
[311198123,1704979859205,-150.0,0.00040689,3]
[311198124,1704979859215,-151.0,0.0004069,7]
[311198125,1704979859225,-151.0,0.0004069,7]
[311198126,1704979859234,-230.27573,0.0004069,7]
[311198127,1704979859244,-230.27573,0.0004069,7]
[311198128,1704979859255,-151.0,0.0004069,7]
[311198129,1704979859265,-156.697825,0.0004069,7]
[311198130,1704979859275,-151.0,0.0004069,7]
[311198131,1704979859286,-151.0,0.0004069,7]
[311198132,1704979859297,-194.801,0.0004069,7]
[311198133,1704979859307,-194.801,0.0004069,7]
[311198134,1704979859317,-243.0998,0.0004069,7]
[311198135,1704979859327,-521652.6228666,0.0004069,3]
[311198136,1704979859337,-3856653.93105841,0.0004069,49]
[311198137,1704979859347,-151.0,0.0004069,7]
[311198138,1704979859356,-151.0,0.0004069,7]
[311198139,1704979859365,-230.27573,0.0004069,7]
[311198140,1704979859375,-230.27573,0.0004069,7]
[311198141,1704979859385,-1020.76190231,0.0004069,2]
[311198142,1704979859394,-151.0,0.0004069,7]
[311198143,1704979859404,-151.0,0.0004069,7]
[311198144,1704979859414,-151.0,0.0004069,7]
[311198145,1704979859423,-194.801,0.0004069,7]
[311198146,1704979859436,-194.801,0.0004069,7]
[311198147,1704979859446,-2000.0,0.00040696,3]
[311198148,1704979859456,-150.0,0.00040697,3]
[311198149,1704979859466,-150.0,0.00040697,3]
[311198150,1704979859476,-567.40111,0.00040698,8]
[311198151,1704979859486,-4352.0,0.000407,81]
[311198152,1704979859496,-153.46,0.000407,4]
[311198153,1704979859506,-153.46,0.000407,4]
[311198154,1704979859516,-153.46,0.000407,4]
[311198155,1704979859674,-153.46,0.000407,4]
[311198156,1704979859687,-153.46,0.000407,4]
[311198157,1704979859697,-153.46,0.000407,4]
[311198158,1704979859707,-153.46,0.000407,4]
[311198159,1704979859717,-153.46,0.000407,4]
[311198160,1704979859728,-153.46,0.000407,4]
[311198161,1704979859737,-153.46,0.000407,4]
[311198162,1704979859747,-153.46,0.000407,4]
[311198163,1704979859758,-1102.0,0.000407,7]
[311198164,1704979859767,-101744.1718988,0.00040709,2]
[311198165,1704979859777,-964.2600412,0.00040709,2]
[311198166,1704979859786,-964.2600412,0.00040709,2]
[311198167,1704979859796,-2244.4674678,0.00040709,2]
[311198168,1704979859806,-2244.4674678,0.00040709,2]
[311198169,1704979859815,-72791.3511943,0.00040709,2]
[311198170,1704979859824,-55083.5476419,0.00040709,2]
[311198171,1704979859834,-805.6377464,0.00040709,2]
[311198172,1704979859843,-950.6885579,0.00040709,2]
[311198173,1704979859852,-400.0,0.00040712,120]
[311198174,1704979859862,-322.15297897,0.00040721,33]
[311198175,1704979859871,-346.91,0.00040733,2]
[311198176,1704979859881,-76993.0747007,0.00040737,2]
[311198177,1704979859890,-52241.9775027,0.00040737,2]
[311198178,1704979859900,-964.2600412,0.00040737,2]
[311198179,1704979859910,-2244.4674678,0.00040737,2]
[311198180,1704979859919,-37375.7440895,0.00040737,2]
[311198181,1704979859929,-1095.7393694,0.00040737,2]
[311198182,1704979859941,-2000.0,0.00040753,2]
[311198183,1704979859950,-200.0,0.00040753,2]
[311198184,1704979859960,-471.57,0.00040755,2]
[311198185,1704979859969,-414.22,0.00040759,2]
[311198186,1704979859979,-151.22078083,0.00040759,9]
[311198187,1704979859989,-350.0,0.00040767,120]
[311198188,1704979859998,-27490.8803047,0.00040793,2]
[311198189,1704979860008,-964.2600412,0.00040793,2]
[311198190,1704979860018,-2244.4674678,0.00040793,2]
[311198191,1704979860027,-19667.9405371,0.00040793,2]
[311198192,1704979860037,-1240.7901809,0.00040793,2]
[311198193,1704979860047,-838.1248,0.00040799,2]
[311198194,1704979860056,-150.0,0.000408,16]
[311198195,1704979860067,-504.6548218,0.000408,4]
[311198196,1704979860076,-1037.9634488,0.000408,4]
[311198197,1704979860086,-500.0,0.00040821,4]
[311198198,1704979860095,-500.0,0.00040821,4]
[311198199,1704979860104,-500.0,0.00040821,4]
[311198200,1704979860113,-500.0,0.00040821,4]
[311198201,1704979860123,-279.72,0.00040821,4]
[311198202,1704979860132,-500.0,0.00040821,4]
[311198203,1704979860142,-500.0,0.00040821,4]
[311198204,1704979860151,-238.36,0.00040821,4]
[311198205,1704979860161,-500.0,0.00040821,4]
[311198206,1704979860171,-498.92,0.00040821,4]
[311198207,1704979860181,-610.64,0.00040821,4]
[311198208,1704979860191,-500.0,0.00040821,4]
[311198209,1704979860200,-542.37,0.00040821,4]
[311198210,1704979860210,-500.0,0.00040821,4]
[311198211,1704979860219,-500.0,0.00040821,4]
[311198212,1704979860229,-500.0,0.00040821,4]
[311198213,1704979860239,-500.0,0.00040821,4]
[311198214,1704979860249,-532.83,0.00040821,4]
[311198215,1704979860259,-7021.77,0.00040821,4]